Cogmind - Beta 13 @@@ ROGUE MODE // 2024.04.03 @ 20:21:47 Player: Cheeriohz Result: Destroyed by as-19282 with Assembled Blade Performance ------------- Evolutions (0) 0 Regions Visited (2) 400 Robots Destroyed (22) 110 Value Destroyed (316) 316 Prototype IDs (0) 0 Alien Tech Used (0) 0 Bonus (0) 0 TOTAL SCORE: 826 Bonus ------- None Cogmind --------- Core Integrity 0/250 Matter 270/300 Energy 166/265 System Corruption 0% Temperature Cool (0) Movement Treading (160) Location -10/Mines Parts ------- > --- POWER (1) -------- Improved Ion Engine > --- PROPULSION (2) --- Light Treads Light Treads > --- UTILITY (2) ------ Large Storage Unit > --- WEAPON (2) ------- (None) > --- INVENTORY (15) --- Light Treads Small Storage Unit Large Storage Unit Large Battery (200) Sensor Array Targeting Computer Light Assault Rifle Light Assault Rifle Rocket Launcher Mining Laser Peak State ------------ > --- POWER ------------ Improved Ion Engine > --- PROPULSION ------- Wheel Wheel > --- UTILITY ---------- Large Storage Unit Light Armor Plating > --- WEAPON ----------- Medium Laser Assault Rifle > --- INVENTORY -------- Ion Engine Ion Engine Light Treads Light Treads Light Treads Aluminum Leg Aluminum Leg Compact Wheel Small Storage Unit Large Storage Unit Large Battery Sensor Array Targeting Computer Targeting Computer Light Assault Rifle [Rating: 9] Favorites ----------- Power Ion Engine Engine Ion Engine Propulsion Wheel Treads Light Treads Leg Aluminum Leg Wheel Wheel Utility Large Storage Unit Storage Large Storage Unit Processor Targeting Computer Protection Light Armor Plating Weapon Assault Rifle Energy Gun Medium Laser Ballistic Gun Assault Rifle Build | -11 -10 -10 ------- Run | Yrd Mat Min Slots Evolved . | . . . Power . | . . . Propulsion . | . . . Utility . | . . . Weapon . | . . . Parts Attached 16 | . 9 7 Power 5 | . 3 2 Engine 5 | . 3 2 Core . | . . . Reactor . | . . . Propulsion 5 | . 2 3 Treads 2 | . . 2 Leg . | . . . Wheel 3 | . 2 1 Hover . | . . . Flight . | . . . Utility 3 | . 2 1 Device . | . . . Storage 1 | . 1 . Processor 1 | . . 1 Hackware . | . . . Protection 1 | . 1 . Artifact . | . . . Weapon 3 | . 2 1 Energy Gun 2 | . 2 . Energy Cannon . | . . . Ballistic Gun 1 | . . 1 Ballistic Cannon . | . . . Launcher . | . . . Special Weapon . | . . . Impact Weapon . | . . . Slashing Weapon . | . . . Piercing Weapon . | . . . Special Melee Weapon . | . . . Unidentified Prototypes . | . . . Parts Lost 11 | . 2 9 Power 3 | . 1 2 Propulsion 3 | . . 3 Utility 2 | . . 2 Weapon 3 | . 1 2 Highest Loss Streak 7 | . 1 7 To Critical Strikes . | . . . Average Slot Usage (%) 94 | . 98 87 Engine 13 | . 14 13 Leg 12 | . 18 . Wheel 12 | . 9 17 Storage 16 | . 17 14 Processor 3 | . . 9 Protection 7 | . 8 3 Energy Gun 10 | . 14 2 Ballistic Gun 17 | . 14 24 Naked Turns . | . . . Heaviest Build 34 | 14 34 34 Greatest Support 40 | 20 20 40 Greatest Overweight (x) 2 | . 1 2 Average Overweight (x) 1 | . . 1 Largest Inventory Capacity 15 | 8 15 15 Average Capacity 14 | 8 14 15 Most Carried 15 | 6 15 15 Average Carried 11 | 6 9 14 Final Capacity 15 | 8 15 15 Final Carried 14 | 6 14 10 Class Distribution -------------------- 100% | Mutant Dominant Class ---------------- Mutant | -10/Materials Mutant | -10/Mines Resources | -11 -10 -10 ----------- Run | Yrd Mat Min Matter Collected 556 | 200 274 82 Remotely . | . . . Salvage Created 677 | . 493 184 Parts 42 | . 30 12 Haulers Intercepted 1 | . 1 . Recyclers Shooed 3 | . 3 . Parts Field Recycled . | . . . Retrieved Matter . | . . . Parts Self-Destructed . | . . . Prevented . | . . . Kills | -11 -10 -10 ------- Run | Yrd Mat Min Combat Hostiles Destroyed 16 | . 10 6 Guns 15 | . 9 6 AOE 1 | . 1 . Classes Destroyed 6 | . 6 . Worker 1 | . 1 . Hauler 1 | . 1 . Recycler 3 | . 2 1 Watcher 1 | . 1 . Swarmer 12 | . 6 6 Grunt 4 | . 4 . Best Kill Streak 9 | . 9 3 Combat Bots Only 8 | . 8 3 Max Kills in Single Turn 2 | . 2 1 Gunslinging . | . . . Exploded 1 | . 1 . Melee . | . . . Uniques/NPCs Destroyed . | . . . Combat | -11 -10 -10 -------- Run | Yrd Mat Min Hostile Shots Fired 126 | . 51 75 Missed 38 | . 16 22 Damage Taken 1126 | . 382 744 Core 254 | . 41 213 Absorbed by Shields . | . . . Core Remaining (%) 100 | 100 . . Volleys Fired 89 | . 71 18 Largest 2 | . 1 2 Hottest 40 | . 40 40 Shots Fired 102 | . 71 31 Gun 102 | . 71 31 Cannon . | . . . Launcher . | . . . Special . | . . . Kinetic 94 | . 63 31 Thermal . | . . . Explosive . | . . . Electromagnetic 8 | . 8 . Robot Hit Streak 10 | . 10 5 Robot Miss Streak 6 | . 6 2 Penetration Max . | . . . Secondary Targets 2 | . . 2 Max Gunslinging Chain 1 | . . 1 Shots Hit Robots 58 | . 41 17 Core Hits 27 | . 19 8 Critical Kills . | . . . Critical Parts Destroyed . | . . . Critical Strikes . | . . . Melee Attacks . | . . . Impact . | . . . Slashing . | . . . Piercing . | . . . Sneak Attacks . | . . . Combat Hostiles . | . . . Follow-up Attacks . | . . . Damage Inflicted 895 | . 697 198 Guns 783 | . 595 188 Cannons . | . . . Explosions 102 | . 102 . Melee . | . . . Ramming 10 | . . 10 Kinetic 743 | . 555 188 Thermal 102 | . 102 . Explosive . | . . . Electromagnetic 40 | . 40 . Impact . | . . . Slashing . | . . . Piercing . | . . . Highest Corruption . | . . . Average Corruption . | . . . Corruption Purged . | . . . Corruption Blocked . | . . . Overload Shots . | . . . Overflow Damage . | . . . Projectiles . | . . . Explosions . | . . . Melee . | . . . Knockbacks . | . . . Impact . | . . . Kinetic . | . . . Secondary . | . . . Self-Inflicted Damage 43 | . 38 5 Shots 1 | . 1 . Rammed 1 | . . 1 Targets Rammed 1 | . . 1 Kicked . | . . . Crushed . | . . . Highest Temperature 21 | . 21 8 Average Temperature 5 | . 12 2 Received Heat Transfer 117 | . 117 . Siege Activations . | . . . Robots Corrupted . | . . . Combat Hostiles . | . . . Parts Fried . | . . . Impact Corruptions . | . . . Robots Melted . | . . . Combat Hostiles . | . . . Parts Melted . | . . . Heat Transferred 150 | . 150 . Parts Sabotaged . | . . . Parts Stolen . | . . . Parts Stripped . | . . . Power Chain Reactions 1 | . 1 . Alert | -11 -10 -10 ------- Run | Yrd Mat Min Peak Influence 316 | . 316 167 Initial 27 | . . 27 Average 146 | . 161 115 Maximum Alert Level 1 | . 1 . Low Security (%) 82 | 100 74 100 Level 1 17 | . 25 . Level 2 . | . . . Level 3 . | . . . Level 4 . | . . . Level 5 . | . . . High Security . | . . . Max Security . | . . . Squads Dispatched 1 | . 1 . Investigation . | . . . Extermination . | . . . Reinforcement 1 | . 1 . Assault . | . . . Garrison . | . . . Intercept . | . . . Searches Triggered . | . . . Construction Impeded . | . . . Haulers Reinforced . | . . . Active Scanning Responses . | . . . Cargo Convoy Interrupts . | . . . Stealth | -11 -10 -10 --------- Run | Yrd Mat Min Distress Signals 3 | . 3 . Communications Jammed . | . . . Distress Signals . | . . . Times Spotted 39 | . 24 15 Peak Tracking Total 9 | . 4 9 Tactical Retreats 3 | . 1 2 Traps | -11 -10 -10 ------- Run | Yrd Mat Min Traps Triggered . | . . . Indirectly . | . . . Trap Hack Attempts . | . . . Triggered . | . . . Disarmed . | . . . Reprogrammed . | . . . Reused . | . . . Traps Extracted . | . . . Installed . | . . . Triggered . | . . . Machines | -11 -10 -10 ---------- Run | Yrd Mat Min Machines Disabled 1 | . 1 . Max in Single Turn 1 | . 1 . Machines Repaired . | . . . Machines Dismantled . | . . . Machines Sabotaged . | . . . Overloaded Fab Kills . | . . . Hacking | -11 -10 -10 --------- Run | Yrd Mat Min Machines Accessed 5 | . 5 . Terminals 5 | . 5 . Fabricators . | . . . Repair Stations . | . . . Recycling Units . | . . . Scanalyzers . | . . . Garrison Access . | . . . Total Hacks 12 | . 12 . Successful 6 | . 6 . Failed 6 | . 6 . Catastrophic 1 | . 1 . Database Lockouts . | . . . Manual 10 | . 10 . Terminals 12 | . 12 . Fabricators . | . . . Repair Stations . | . . . Recycling Units . | . . . Scanalyzers . | . . . Garrison Access . | . . . Terminal Hacks 2 | . 2 . Level Access Points 1 | . 1 . Branch Access Points 1 | . 1 . Fabricator Hacks . | . . . Repair Station Hacks . | . . . Recycling Unit Hacks . | . . . Scanalyzer . | . . . Garrison Access Hacks . | . . . Unauthorized Hacks 4 | . 4 . Terminals 4 | . 4 . Botnet 4 | . 4 . Fabricators . | . . . Repair Stations . | . . . Recycling Units . | . . . Scanalyzers . | . . . Garrison Access . | . . . Data Cores Recovered . | . . . Used . | . . . Hacking Detections 5 | . 5 . Full Trace Events . | . . . Feedback Events . | . . . Feedback Blocked . | . . . Robot Schematics Acquired . | . . . Robots Built . | . . . Authchips . | . . . Time . | . . . Total Robot Build Rating . | . . . Part Schematics Acquired . | . . . Parts Built . | . . . Authchips . | . . . Time . | . . . Total Part Build Rating . | . . . Parts Repaired . | . . . Time . | . . . Parts Recycled . | . . . Recycled Matter . | . . . Retrieved Matter . | . . . Retrieved Components . | . . . Parts Scanalyzed . | . . . Part Schematics Acquired . | . . . Parts Damaged . | . . . Bothacking | -11 -10 -10 ------------ Run | Yrd Mat Min Used RIF Installer . | . . . Robots Hacked . | . . . Non-combat . | . . . Combat . | . . . Robot Hacks Applied . | . . . Relay Couplers Released . | . . . Fabnet Peak Effective % . | . . . Robots Rewired . | . . . Allies Hacked . | . . . Hacks Repelled . | . . . Allies | -11 -10 -10 -------- Run | Yrd Mat Min Total Allies . | . . . Largest Group . | . . . Highest-Rated Group . | . . . Highest-Rated Ally . | . . . Total Orders . | . . . Ally Attacks . | . . . Total Damage . | . . . Kills . | . . . Allies Corrupted . | . . . Allies Melted . | . . . Intel | -11 -10 -10 ------- Run | Yrd Mat Min Robot Analysis Total . | . . . Derelict Logs Recovered 1 | . . 1 Drone Launches . | . . . Drone Recoveries . | . . . Exploration | -11 -10 -10 ------------- Run | Yrd Mat Min Turns Passed 1331 | 5 890 436 Spaces Moved 901 | 5 551 345 Core . | . . . Treads 7 | . . 7 Legs 248 | 5 243 . Wheels 646 | . 308 338 Hover . | . . . Flight . | . . . Fastest Speed 95 | 120 95 95 Average Speed 119 | 120 128 106 Slowest Speed 190 | 120 190 160 Overloaded Moves . | . . . Propulsion Burnouts . | . . . Robots Hopped . | . . . Cave-ins Triggered . | . . . Exploration Rate (%) 53 | 2 93 64 Regions Visited 2 Branch Regions 1 Pre-discovered Areas . | . . . Known Exits Taken 1 | . 1 . Unknown Exits Taken 1 | 1 . . Scrap Searched . | . . . Spaces Dug . | . . . Terrain Destroyed 2 | . 2 . Melee . | . . . Projectile . | . . . AOE 2 | . 2 . Terrain Rammed . | . . . Walls Destroyed . | . . . Machines Disabled . | . . . Actions | -11 -10 -10 --------- Run | Yrd Mat Min Total 1058 | 4 668 386 Wait 26 | . 17 9 Move 899 | 4 550 345 Hop . | . . . Pick Up 15 | . 12 3 Fast Attach 5 | . 4 1 Attach 8 | . 2 6 Detach 4 | . 3 1 Swap 3 | . 3 . Drop 8 | . 6 2 Fire 89 | . 71 18 Melee . | . . . Ram 1 | . . 1 Kick . | . . . Crush . | . . . Escape Stasis . | . . . Rewire . | . . . Trap . | . . . Miscellaneous . | . . . Route ------- -11/Scrapyard -10/Materials (discovered 4 exits: *Mat x3 / *Min) -10/Mines History --------- Turn | Location | Event 1 | -11/Scrapyard | Discovered new exit (range 3) 6 | -11/Scrapyard | Entered Materials 79 | -10/Materials | Identified exit to Materials 254 | -10/Materials | Destroyed 8 combat bots 307 | -10/Materials | Build established: Mutant 778 | -10/Materials | Identified exit to Mines 896 | -10/Materials | Entered Mines 974 | -10/Mines | Learned Materials trap positions 1246 | -10/Mines | Received a Rocket Launcher from a helpful Derelict 1277 | -10/Mines | Assembled infested the area 1306 | -10/Mines | Core integrity fell below 50% 1329 | -10/Mines | Core integrity fell below 20% 1332 | -10/Mines | Destroyed by as-19282 with Assembled Blade Last Messages --------------- laser wimps, I say!" 01246_ QJ-AX4(g): "Would you like a rocket launcher? I know I would if I were you, so I'm going to lend you mine." 01246_ QJ-AX4(g) slips back into the shadows. 01255_ Dropped Lgt. Assault Rifle. 01255_ Acquired Rocket Launcher. 01262_ T-07 Excavator is excavating. 01277_ ALERT: Infestation in the mines, dispatching Demolisher response squad. 01289_ Slammed into K-01 Serf. 01293_ K-01 Serf destroyed. 01294_ T-07 Excavator destroyed. 01302_ Lgt. Assault Rifle destroyed. 01303_ Acquired 5 matter. 01309_ Com. Wheel destroyed. 01309_ Imp. Ion Engine destroyed. 01310_ Assault Rifle destroyed. 01318_ Wheel destroyed. 01318_ Targeting Computer destroyed. 01318_ Imp. Ion Engine destroyed. Map ----- +----------------------------------------------------+ | ?????????????????????????????????????????????????? | | ?????????????????????????????????????????????????? | | ?????????????????????????????????????????????????? | | ?????????????????????????????????????????????????? | | ?????????????????????????????????????????????????? | | ???????????????????###?????????????? ???????###?? | | ???????????????##### ##????????????? ####### ## | | ???????????????# #???????????? # | | ???????????????# #???????????? # | | ???????????????## #???????????? # | | ??????????####### #????????????# # | | ?????????## ## #????????????# | | ?????????# ##????????###? | | ?????????# ##?????????# ? ???# | | ????????## ##??????????# #?# ???## | | ######### ######??????# #?# #????### | | =%==%* ## ##?????# #?# #??????## | | [ % !| *= #?????# #?# #???????# | | ####### =%[ ####### #?# ######??## | | #?????## #### ## ### #???## | | #??????########??## ####### ## #### #????# # | | ??????????????????#####?##### ## #####??# #????# # | | ????????????????????????# a #??????# #????# # | | ????????????????????????# ########??????# #????# # | | ????????????????????????#a#?????????????# #????# # | | ??????????????????????###@#?????????????# #????# # | | ??????????????????????# #?????????????# #????# # | | ??????????????????????# ###????????####?# ###### # | | ??????????????????????# ############ ### # | | ??????????????????????# ########### | | ??????????????????????# ###### #### #####????? | | ????????????????????### ##???# #??# ##???? | | ?????????????????#### ##??# #??# #???? | | ?????????????????# #??# #### #????? | | ?????????????????# #??# #?????? | | ???????#?????????# ##??###### ###?????? | | ???????# ????????## ##???????## ##?????### | | ???????# ?????????### ##???????# #?????# | | ???????# ???????????## ###?????# ##???# | | ???????# ????######### #?????## #### | | ???????# ???# ##??????### ## | | ???????# ???# ######## ##?????????## | | ???????# ???# #??????#####???????????## """ | | ???????# ##?# #???????????????????????# """ ## | | # #### ### #???????????????????????# """=###? | | ?# ## #???????????????????????## *=#??? | | ?# ##### ##########???????????????####%=#??? | | ????????### #???###????????????# %#??? | | ??????????## =%*#??## #????????????# ##?? | | ???????????## ######## #### #???????????## #?? | +----------------------------------------------------+ Best States ------------- Heat Dissipation 25 Energy Generation 12 Energy Capacity 265 Matter Stores 300 Matter Capacity 300 Sight Range 16 Terrain Scan Density 10 Armor Coverage 150 Evasion (%) 55 Targeting Accuracy 5 Recoil Reduction 2 Item Schematics ----------------- None Robot Schematics ------------------ None Fabricated ------------ Nothing Alien Tech Used ----------------- None Achievements -------------- None Challenges ------------ None Game ------ Seed GlidesysTrapAutohacker Manual? 0 Play Time 00:13:52 Cumulative 93.5 hours Start 2024.04.03 @ 20:10:57 End 2024.04.03 @ 20:21:47 Sessions 1 Manual Loads 0 Difficulty Rogue Special Mode None Game No. 92 Rogue 92 Adventurer 0 Explorer 0 Win Type - Total 2 Types 2/0/0/0/0/0/0/0/0 Lore% 40 Gallery% 59 Achievement% 43 Wizard Run 0 Options --------- Layout 1 ASCII 0 Keyboard 1 Movement Numpad Keybinds 0 Fullscreen 1 Font 32/SmallcapsGlow Map View 77x35 Zoom Use 0% Tactical HUD 1 Map Filters NONE Filters NONE Steam 1 RUN: 72bb1992-06da-4f88-9d16-34b74315cb27